fUSD/lending_fUSD_20250724
["ID","MTS","AMOUNT","RATE_DAILY","PERIOD"]
[374504939,1753329048565,-150.0,0.00024288,2]
[374504941,1753329048576,-150.0,0.00024288,2]
[374504943,1753329048587,-150.0,0.00024288,2]
[374504945,1753329048596,-150.0,0.00024288,2]
[374504947,1753329048606,-150.0,0.00024288,2]
[374504949,1753329048617,-500.0,0.0002429,7]
[374504952,1753329048627,-201.88609988,0.0002429,7]
[374504954,1753329048637,-352.69344308,0.0002429,7]
[374504956,1753329048647,-297.30965903,0.0002429,7]
[374504958,1753329048657,-500.0,0.0002429,7]
[374504960,1753329048666,-151.0,0.00024292,7]
[374504962,1753329048675,-230.0,0.00024312,2]
[374504964,1753329048686,-151.025238,0.00024314,7]
[374504966,1753329048695,-276.19465298,0.00024315,4]
[374504968,1753329048704,-150.0,0.00024316,4]
[374504970,1753329048714,-150.0,0.0002432,4]
[374504972,1753329048724,-150.0,0.00024332,4]
[374504974,1753329048734,-276.19465298,0.00024342,4]
[374504976,1753329048744,-150.0,0.00024345,4]
[374504978,1753329048754,-150.0,0.00024352,4]
[374504980,1753329048764,-150.0,0.00024355,4]
[374504982,1753329048773,-276.19465298,0.00024369,4]
[374504984,1753329048783,-1919.0,0.0002437,2]
[374504986,1753329048792,-206.54055567,0.0002437,2]
[374504988,1753329048802,-920.0,0.0002437,2]
[374504990,1753329048811,-660.0,0.0002437,2]
[374504991,1753329048821,-150.0,0.00024374,4]
[374504994,1753329048830,-150.0,0.00024376,4]
[374504996,1753329048840,-150.0,0.00024384,4]
[374504998,1753329048850,-230.0,0.00024387,2]
[374505000,1753329048860,-150.0,0.00024396,4]
[374505002,1753329048870,-276.19465298,0.00024397,4]
[374505004,1753329048879,-40000.0,0.000244,5]
[374505006,1753329048890,-151.0,0.000244,7]
[374505008,1753329048900,-151.0,0.000244,7]
[374505010,1753329048910,-151.0,0.000244,7]
[374505012,1753329048919,-153.655935,0.000244,7]
[374505014,1753329048929,-151.0,0.000244,7]
[374505016,1753329048938,-151.0,0.000244,7]
[374505018,1753329048947,-151.0,0.000244,7]
[374505020,1753329048957,-151.0,0.000244,7]
[374505022,1753329048966,-156.679487,0.000244,7]
[374505024,1753329048977,-151.0,0.000244,7]
[374505026,1753329048986,-292.67522,0.000244,7]
[374505027,1753329048995,-151.0,0.000244,7]
[374505029,1753329049004,-354.139638,0.000244,7]
[374505031,1753329049014,-151.0,0.000244,7]
[374505033,1753329049023,-354.139638,0.000244,7]
[374505036,1753329049035,-151.0,0.000244,7]
[374505037,1753329049045,-151.0,0.000244,7]
[374505039,1753329049055,-151.0,0.000244,7]
[374505041,1753329049065,-158.967403,0.000244,7]
[374505043,1753329049076,-151.0,0.000244,7]
[374505046,1753329049086,-151.0,0.000244,7]
[374505048,1753329049095,-151.0,0.000244,7]
[374505050,1753329049105,-678.473947,0.000244,7]
[374505051,1753329049115,-678.473947,0.000244,7]
[374505054,1753329049124,-151.0,0.000244,7]
[374505056,1753329049134,-151.0,0.000244,7]
[374505058,1753329049144,-156.693148,0.000244,7]
[374505060,1753329049154,-156.693148,0.000244,7]
[374505062,1753329049163,-151.0,0.000244,7]
[374505063,1753329049172,-1813.805804,0.000244,7]
[374505066,1753329049182,-1813.805804,0.000244,7]
[374505068,1753329049191,-187.189942,0.000244,7]
[374505070,1753329049201,-187.189942,0.000244,7]
[374505071,1753329049210,-151.0,0.000244,7]
[374505074,1753329049220,-151.0,0.000244,7]
[374505076,1753329049230,-151.0,0.000244,7]
[374505077,1753329049240,-153.101665,0.000244,7]
[374505080,1753329049250,-153.101665,0.000244,7]
[374505081,1753329049259,-151.0,0.000244,7]
[374505083,1753329049270,-170.169113,0.000244,7]
[374505086,1753329049284,-201.840783,0.000244,7]
[374505088,1753329049294,-201.840783,0.000244,7]
[374505089,1753329049303,-151.0,0.000244,7]
[374505090,1753329049313,-151.0,0.000244,7]
[374505091,1753329049323,-151.0,0.000244,7]
[374505092,1753329049333,-150.0,0.00024403,4]
[374505093,1753329049343,-150.0,0.00024405,4]
[374505094,1753329049352,-150.0,0.00024416,4]
[374505095,1753329049364,-151.0,0.00024417,7]
[374505096,1753329049374,-151.0,0.00024417,7]
[374505097,1753329049384,-151.0,0.00024417,7]
[374505099,1753329049394,-180.808131,0.00024417,7]
[374505101,1753329049404,-180.808131,0.00024417,7]
[374505103,1753329049413,-317.742185,0.00024417,7]
[374505105,1753329049422,-317.742185,0.00024417,7]
[374505107,1753329049432,-151.0,0.00024417,7]
[374505109,1753329049441,-151.0,0.00024417,7]
[374505111,1753329049451,-234.563674,0.00024417,7]
[374505113,1753329049460,-234.563674,0.00024417,7]
[374505115,1753329049470,-234.482178,0.00024417,7]
[374505117,1753329049479,-234.482178,0.00024417,7]
[374505119,1753329049489,-233.797699,0.00024417,7]
[374505121,1753329049498,-151.0,0.00024417,7]
[374505123,1753329049508,-233.797699,0.00024417,7]
[374505125,1753329049517,-151.0,0.00024417,7]
[374505127,1753329049528,-513.526302,0.00024417,7]
[374505129,1753329049537,-513.526302,0.00024417,7]
[374505131,1753329049547,-151.0,0.00024417,7]
[374505133,1753329049556,-151.0,0.00024417,7]
[374505135,1753329049566,-216.596582,0.00024417,7]
[374505137,1753329049575,-150.0,0.0002442,4]
[374505139,1753329049585,-151.0,0.00024421,7]
[374505141,1753329049594,-151.0,0.00024421,7]
[374505143,1753329049604,-277.352727,0.00024421,7]
[374505145,1753329049614,-151.0,0.00024421,7]
[374505147,1753329049623,-151.0,0.00024421,7]
[374505149,1753329049633,-151.0,0.00024421,7]
[374505151,1753329049642,-150.0,0.00024423,4]
[374505153,1753329049653,-276.19465298,0.00024424,4]
[374505155,1753329049662,-150.0,0.00024431,4]
[374505157,1753329049671,-432.0,0.00024436,2]
[374505159,1753329049681,-153.762703,0.00024448,7]
[374505161,1753329049691,-153.762703,0.00024448,7]
[374505163,1753329049701,-150.0,0.00024448,4]
[374505165,1753329049711,-276.19465298,0.00024451,4]
[374505167,1753329049720,-150.0,0.0002446,4]
[374505169,1753329049729,-150.0,0.00024465,4]
[374505171,1753329049739,-276.19465298,0.00024478,4]
[374505173,1753329049748,-150.0,0.0002448,4]
[374505175,1753329049758,-150.0,0.00024489,4]
[374505177,1753329049767,-150.0,0.0002449,4]
[374505179,1753329049779,-4529.18873728,0.000245,2]
[374505181,1753329049788,-196.63,0.00024501,2]
[374505183,1753329049797,-150.0,0.00024504,4]
[374505185,1753329049806,-276.19465298,0.00024506,4]
[374505187,1753329049816,-150.0,0.00024509,4]
[374505189,1753329049825,-150.0,0.00024513,4]
[374505191,1753329049835,-150.0,0.00024517,4]
[374505193,1753329049844,-501.98666608,0.00024521,2]
[374505195,1753329049854,-217.89891929,0.00024521,2]
[374505197,1753329049863,-501.20468739,0.00024521,2]
[374505199,1753329049872,-1000.0,0.00024521,2]
[374505201,1753329049881,-1000.0,0.00024521,2]
[374505203,1753329049891,-1000.0,0.00024521,2]
[374505205,1753329049900,-1000.0,0.00024521,2]
[374505207,1753329049909,-1000.0,0.00024521,2]
[374505209,1753329049919,-150.0,0.00024522,4]
[374505211,1753329049928,-3510.19536389,0.00024524,2]
[374505213,1753329049937,-276.19465298,0.00024533,4]
[374505215,1753329049946,-150.0,0.00024545,4]
[374505217,1753329049956,-150.0,0.00024546,4]
[374505219,1753329049965,-206.01938104,0.00024547,11]
[374505221,1753329049974,-150.0,0.00024553,4]
[374505223,1753329049983,-150.0,0.00024558,4]
[374505225,1753329049993,-151.0,0.00024558,7]
[374505227,1753329050002,-276.19465298,0.0002456,4]
[374505229,1753329050011,-504.73550493,0.00024564,7]
[374505231,1753329050021,-500.0,0.00024564,7]
[374505233,1753329050031,-150.0,0.00024575,4]
[374505235,1753329050041,-150.0,0.00024577,4]
[374505237,1753329050050,-151.0,0.00024584,2]
[374505239,1753329050059,-276.19465298,0.00024588,4]
[374505241,1753329050068,-230.0,0.00024597,2]
[374505243,1753329050077,-150.0,0.00024597,4]
[374505245,1753329050087,-1521.98931461,0.00024599,2]
[374505247,1753329050096,-150.0,0.00024603,4]
[374505248,1753329050105,-150.0,0.00024609,4]
[374505250,1753329050115,-230.0,0.00024609,2]
[374505253,1753329050124,-150.0,0.00024612,4]
[374505255,1753329050134,-276.19465298,0.00024615,4]
[374505257,1753329050145,-676.284082,0.00024616,7]
[374505259,1753329050154,-676.284082,0.00024616,7]
[374505261,1753329050165,-150.0,0.00024625,4]
[374505263,1753329050174,-150.0,0.00024625,4]
[374505265,1753329050184,-150.0,0.00024632,4]
[374505266,1753329050193,-150.0,0.0002464,4]
[374505268,1753329050204,-150.0,0.00024641,4]
[374505270,1753329050213,-150.0,0.00024642,4]
[374505273,1753329050224,-276.19465298,0.00024642,4]
[374505274,1753329050233,-1919.0,0.00024644,2]
[374505277,1753329050243,-920.0,0.00024644,2]
[374505279,1753329050253,-14268.0,0.00024658,2]
[374505282,1753329050270,-252.86149907,0.00024658,2]
[374505284,1753329050288,-151.0,0.00024658,2]
[374505286,1753329050299,-151.0,0.00024658,2]
[374505288,1753329050310,-151.0,0.00024658,7]
[374505290,1753329050320,-151.0,0.00024658,7]
[374505293,1753329050331,-151.0,0.00024658,7]
[374505295,1753329050341,-151.0,0.00024658,7]
[374505297,1753329050351,-201.454601,0.00024658,7]
[374505298,1753329050363,-150.0,0.00024658,2]
[374505301,1753329050374,-150.0,0.00024661,4]
[374505303,1753329050384,-276.19465298,0.00024669,4]
[374505305,1753329050395,-150.0,0.00024673,4]
[374505307,1753329050405,-150.0,0.00024673,4]
[374505309,1753329050415,-361.63,0.00024685,2]
[374505311,1753329050424,-150.0,0.00024686,4]
[374505313,1753329050433,-150.0,0.0002469,4]
[374505315,1753329050443,-150.0,0.00024692,4]
[374505317,1753329050452,-276.19465298,0.00024697,4]
[374505319,1753329050461,-160.0,0.000247,7]
[374505321,1753329050471,-1000.0,0.00024702,2]
[374505323,1753329050481,-150.0,0.00024705,4]
[374505325,1753329050490,-150.0,0.00024718,4]
[374505327,1753329050499,-150.0,0.00024719,4]
[374505329,1753329050509,-276.19465298,0.00024724,4]
[374505331,1753329050519,-257.91778498,0.00024725,2]
[374505333,1753329050530,-230.0,0.00024729,2]
[374505335,1753329050539,-150.0,0.0002473,4]
[374505337,1753329050549,-180.10601631,0.00024737,2]
[374505339,1753329050559,-150.0,0.00024737,4]
[374505341,1753329050568,-150.0,0.00024747,4]
[374505343,1753329050577,-276.19465298,0.00024751,4]
[374505345,1753329050587,-150.0,0.00024757,4]
[374505347,1753329050596,-150.0,0.0002476,4]
[374505349,1753329050606,-150.0,0.0002477,4]
[374505351,1753329050615,-500.0,0.00024773,2]
[374505353,1753329050625,-500.0,0.00024773,2]
[374505355,1753329050636,-640.91179186,0.00024773,2]
[374505357,1753329050646,-150.0,0.00024773,2]
[374505359,1753329050655,-150.0,0.00024774,4]
[374505361,1753329050665,-150.0,0.00024776,4]
[374505363,1753329050674,-276.19465298,0.00024778,4]
[374505365,1753329050685,-1118.0,0.00024795,2]
[374505367,1753329050696,-1479.11,0.000248,7]
[374505370,1753329050712,-160.0,0.000248,3]
[374505372,1753329050722,-676.284082,0.000248,7]
[374505374,1753329050733,-676.284081,0.000248,7]
[374505376,1753329050744,-179.518424,0.000248,7]
[374505378,1753329050754,-238.006467,0.000248,7]
[374505380,1753329050764,-238.006467,0.000248,7]
[374505382,1753329050774,-238.006467,0.000248,7]
[374505384,1753329050785,-238.006467,0.000248,7]
[374505386,1753329050795,-238.006467,0.000248,7]
[374505389,1753329050804,-238.006467,0.000248,7]
[374505391,1753329050815,-151.0,0.000248,7]
[374505393,1753329050825,-151.907178,0.000248,7]
[374505395,1753329050835,-151.0,0.000248,7]
[374505397,1753329050845,-151.0,0.000248,7]
[374505399,1753329050854,-151.0,0.000248,7]
[374505401,1753329050865,-151.0,0.000248,7]
[374505403,1753329050875,-151.0,0.000248,7]
[374505405,1753329050885,-151.0,0.000248,7]
[374505407,1753329050895,-151.0,0.000248,7]
[374505409,1753329050904,-151.0,0.000248,7]
[374505411,1753329050914,-151.0,0.000248,7]
[374505413,1753329050924,-151.0,0.000248,7]
[374505415,1753329050933,-151.0,0.000248,7]
[374505417,1753329050943,-152.809274,0.000248,7]
[374505419,1753329050953,-354.139638,0.000248,7]
[374505421,1753329050963,-151.0,0.000248,7]
[374505423,1753329050972,-354.139638,0.000248,7]
[374505426,1753329050982,-254.366351,0.000248,7]
[374505428,1753329050992,-678.473947,0.000248,7]
[374505430,1753329051003,-678.473947,0.000248,7]
[374505432,1753329051013,-1813.805804,0.000248,7]
[374505434,1753329051023,-1813.805795,0.000248,7]
[374505436,1753329051033,-151.0,0.000248,7]
[374505438,1753329051044,-151.0,0.000248,7]
[374505440,1753329051054,-151.0,0.000248,7]
[374505442,1753329051064,-151.0,0.000248,7]
[374505444,1753329051074,-151.0,0.000248,7]
[374505446,1753329051084,-180.808131,0.000248,7]
[374505447,1753329051093,-153.101665,0.000248,7]
[374505448,1753329051103,-180.808131,0.000248,7]
[374505449,1753329051113,-153.10167,0.000248,7]
[374505450,1753329051122,-317.742185,0.000248,7]
[374505451,1753329051131,-317.742185,0.000248,7]
[374505452,1753329051141,-151.0,0.000248,7]
[374505453,1753329051155,-153.762703,0.000248,7]
[374505454,1753329051165,-153.762703,0.000248,7]
[374505456,1753329051175,-234.482178,0.000248,7]
[374505458,1753329051186,-234.482178,0.000248,7]
[374505460,1753329051196,-233.797699,0.000248,7]
[374505462,1753329051207,-152.683055,0.000248,7]
[374505464,1753329051218,-233.797699,0.000248,7]
[374505467,1753329051228,-477.18900901,0.000248,3]
[374505469,1753329051238,-151.0,0.000248,7]
[374505471,1753329051248,-151.0,0.000248,7]
[374505473,1753329051258,-839.91269601,0.000248,3]
[374505475,1753329051268,-211.01152796,0.000248,3]
[374505477,1753329051280,-329701.514997,0.000248,3]
[374505479,1753329051293,-513.526302,0.000248,7]
[374505481,1753329051302,-513.526302,0.000248,7]
[374505483,1753329051313,-151.0,0.000248,7]
[374505485,1753329051323,-151.0,0.000248,7]
[374505487,1753329051333,-151.0,0.000248,7]
[374505489,1753329051343,-216.596582,0.000248,7]
[374505491,1753329051355,-150.0,0.00024802,4]
[374505493,1753329051366,-150.0,0.00024804,4]
[374505495,1753329051377,-276.19465298,0.00024806,4]
[374505497,1753329051387,-168.0,0.00024807,2]
[374505499,1753329051396,-230.0,0.00024807,2]
[374505501,1753329051407,-1118.0,0.00024815,2]
[374505503,1753329051416,-150.0,0.00024819,4]
[374505505,1753329051427,-150.0,0.00024827,4]
[374505507,1753329051438,-150.0,0.00024827,4]
[374505510,1753329051449,-150.0,0.00024827,4]
[374505512,1753329051459,-276.19465298,0.00024833,4]
[374505514,1753329051469,-150.0,0.00024833,4]
[374505516,1753329051479,-150.0,0.00024834,4]
[374505518,1753329051489,-500.0,0.00024838,7]
[374505520,1753329051500,-165.543907,0.00024838,7]
[374505522,1753329051510,-187.189942,0.00024838,7]
[374505524,1753329051520,-187.189948,0.00024838,7]
[374505526,1753329051530,-206.01938104,0.00024841,12]
[374505528,1753329051539,-276.19465298,0.0002486,4]
[374505530,1753329051549,-150.0,0.00024862,4]
[374505532,1753329051559,-150.0,0.00024863,4]
[374505534,1753329051568,-3510.19536389,0.00024863,2]
[374505536,1753329051578,-1118.0,0.00024866,2]
[374505538,1753329051587,-150.0,0.00024866,4]
[374505540,1753329051597,-150.0,0.00024874,4]
[374505543,1753329051611,-276.19465298,0.00024887,4]
[374505544,1753329051621,-150.0,0.00024891,4]
[374505547,1753329051631,-150.0,0.00024895,4]
[374505549,1753329051641,-150.0,0.00024898,4]
[374505551,1753329051651,-42774.74742507,0.000249,2]
[374505553,1753329051661,-151.0,0.000249,7]
[374505555,1753329051671,-152.078591,0.000249,7]
[374505557,1753329051681,-151.0,0.000249,7]
[374505559,1753329051690,-151.0,0.000249,7]
[374505561,1753329051700,-151.0,0.000249,7]
[374505563,1753329051713,-151.0,0.000249,7]
[374505565,1753329051723,-151.0,0.000249,7]
[374505567,1753329051733,-354.139638,0.000249,7]
[374505569,1753329051742,-151.0,0.000249,7]
[374505571,1753329051751,-354.139638,0.000249,7]
[374505573,1753329051762,-151.0,0.000249,7]
[374505575,1753329051771,-207.920816,0.000249,7]
[374505577,1753329051782,-151.0,0.000249,7]
[374505579,1753329051792,-151.0,0.000249,7]
[374505581,1753329051802,-151.0,0.000249,7]
[374505583,1753329051812,-151.0,0.000249,7]
[374505586,1753329051823,-151.0,0.000249,7]
[374505588,1753329051835,-151.0,0.000249,7]
[374505589,1753329051845,-151.0,0.000249,7]
[374505591,1753329051857,-151.0,0.000249,7]
[374505594,1753329051868,-168.909155,0.000249,7]
[374505596,1753329051877,-678.473947,0.000249,7]
[374505598,1753329051890,-678.473947,0.000249,7]
[374505600,1753329051901,-151.0,0.000249,7]
[374505602,1753329051911,-151.0,0.000249,7]
[374505604,1753329051920,-156.693148,0.000249,7]
[374505606,1753329051929,-156.693148,0.000249,7]
[374505608,1753329051939,-156.693148,0.000249,7]
[374505609,1753329051949,-156.69314,0.000249,7]
[374505611,1753329051959,-151.0,0.000249,7]
[374505613,1753329051969,-151.0,0.000249,7]
[374505615,1753329051979,-151.0,0.000249,7]
[374505617,1753329051989,-155.659673,0.000249,7]
[374505619,1753329051999,-151.0,0.000249,7]
[374505621,1753329052009,-151.0,0.000249,7]
[374505623,1753329052021,-151.0,0.000249,7]
[374505625,1753329052031,-151.0,0.000249,7]
[374505627,1753329052040,-151.0,0.000249,7]
[374505630,1753329052051,-151.0,0.000249,7]
[374505632,1753329052061,-155.580212,0.000249,7]
[374505633,1753329052071,-151.0,0.000249,7]
[374505635,1753329052082,-164.518548,0.000249,7]
[374505637,1753329052092,-151.0,0.000249,7]
[374505640,1753329052102,-151.0,0.000249,7]
[374505642,1753329052112,-180.808131,0.000249,7]
[374505644,1753329052122,-180.808131,0.000249,7]
[374505646,1753329052131,-151.0,0.000249,7]
[374505648,1753329052141,-151.0,0.000249,7]
[374505650,1753329052159,-317.742185,0.000249,7]
[374505653,1753329052171,-317.742185,0.000249,7]
[374505655,1753329052182,-201.840783,0.000249,7]
[374505657,1753329052194,-201.840783,0.000249,7]
[374505659,1753329052203,-151.0,0.000249,7]
[374505661,1753329052213,-151.0,0.000249,7]
[374505663,1753329052223,-201.840783,0.000249,7]
[374505665,1753329052232,-201.840783,0.000249,7]
[374505667,1753329052242,-151.0,0.000249,7]
[374505669,1753329052252,-151.0,0.000249,7]
[374505671,1753329052262,-151.0,0.000249,7]
[374505673,1753329052272,-151.0,0.000249,7]
[374505675,1753329052286,-153.762703,0.000249,7]
[374505677,1753329052295,-153.762703,0.000249,7]
[374505679,1753329052307,-234.563674,0.000249,7]
[374505680,1753329052317,-234.563674,0.000249,7]
[374505681,1753329052329,-234.563674,0.000249,7]
[374505682,1753329052339,-234.563674,0.000249,7]
[374505683,1753329052349,-234.482178,0.000249,7]
[374505684,1753329052360,-234.482178,0.000249,7]
[374505685,1753329052372,-233.797699,0.000249,7]
[374505686,1753329052382,-233.797699,0.000249,7]
[374505688,1753329052392,-151.0,0.000249,7]
[374505690,1753329052401,-151.0,0.000249,7]
[374505692,1753329052412,-103356.015812,0.000249,3]
[374505694,1753329052423,-513.526302,0.000249,7]
[374505696,1753329052432,-513.526302,0.000249,7]
[374505698,1753329052442,-220.830496,0.000249,7]
[374505700,1753329052452,-151.0,0.000249,7]
[374505702,1753329052461,-151.0,0.000249,7]
[374505705,1753329052471,-216.596582,0.000249,7]
[374505707,1753329052481,-1118.0,0.00024904,2]
[374505709,1753329052491,-150.0,0.00024907,4]
[374505711,1753329052500,-276.19465298,0.00024915,4]
[374505713,1753329052510,-1919.0,0.00024918,2]
[374505715,1753329052519,-920.0,0.00024918,2]
[374505717,1753329052530,-150.0,0.00024919,4]
[374505719,1753329052540,-503.0,0.00024923,3]
[374505721,1753329052549,-150.0,0.0002493,4]
[374505723,1753329052560,-297.43232331,0.00024932,2]
[374505725,1753329052570,-150.0,0.00024935,4]
[374505728,1753329052581,-276.19465298,0.00024942,4]
[374505730,1753329052592,-150.0,0.00024948,4]
[374505732,1753329052603,-150.0,0.00024951,4]
[374505734,1753329052613,-150.0,0.00024962,4]
[374505736,1753329052623,-150.0,0.00024962,4]
[374505766,1753329052970,-150.0,0.00024962,4]
[374505768,1753329052980,-150.0,0.00024962,4]
[374505770,1753329052989,-151.0,0.00024967,2]
[374505772,1753329052999,-276.19465298,0.00024969,4]
[374505774,1753329053009,-150.0,0.00024977,4]
[374505776,1753329053018,-1521.98931461,0.00024982,2]
[374505778,1753329053027,-2745.9305352,0.00024983,2]
[374505780,1753329053037,-150.0,0.00024992,4]
[374505782,1753329053047,-150.0,0.00024994,4]
[374505784,1753329053057,-150.0,0.00024996,4]
[374505786,1753329053071,-276.19465298,0.00024996,4]
[374505788,1753329053081,-4849.64242043,0.00025,3]
[374505790,1753329053091,-4002.0,0.00025,3]
[374505792,1753329053101,-603.62271334,0.00025,2]
[374505794,1753329053112,-77061.61,0.00025,7]
[374505796,1753329053121,-3560.66,0.00025,14]
[374505798,1753329053135,-160.0,0.00025,7]
[374505800,1753329053145,-152.97575867,0.00025,2]
[374505802,1753329053155,-2104.35840751,0.00025,4]
[374505804,1753329053165,-151.0,0.00025,7]
[374505806,1753329053175,-151.0,0.00025,7]
[374505808,1753329053185,-151.0,0.00025,7]
[374505810,1753329053195,-151.0,0.00025,7]
[374505812,1753329053204,-243.044367,0.00025,7]
[374505814,1753329053214,-163.082491,0.00025,7]
[374505817,1753329053224,-354.139638,0.00025,7]
[374505818,1753329053234,-151.0,0.00025,7]
[374505820,1753329053244,-354.139638,0.00025,7]
[374505823,1753329053254,-151.0,0.00025,7]
[374505825,1753329053264,-151.0,0.00025,7]
[374505827,1753329053274,-151.0,0.00025,7]
[374505828,1753329053289,-151.0,0.00025,7]
[374505829,1753329053299,-678.473947,0.00025,7]
[374505830,1753329053309,-678.473947,0.00025,7]
[374505831,1753329053319,-152.31,0.00025,2]
[374505832,1753329053330,-168.0,0.00025,7]
[374505833,1753329053340,-160.0,0.00025,7]
[374505834,1753329053350,-150.0,0.00025005,4]
[374505835,1753329053360,-276.19465298,0.00025024,4]
[374505836,1753329053370,-150.0,0.00025027,4]
[374505837,1753329053380,-839.73552401,0.00025027,2]
[374505838,1753329053390,-477.10046099,0.00025027,2]
[374505839,1753329053400,-150.0,0.0002503,4]
[374505840,1753329053410,-150.0,0.00025034,4]
[374505841,1753329053422,-150.0,0.0002504,4]
[374505842,1753329053431,-150.0,0.00025043,4]
[374505843,1753329053442,-276.19465298,0.00025051,4]
[374505844,1753329053452,-150.0,0.00025059,4]
[374505845,1753329053463,-150.0,0.00025059,4]
[374505846,1753329053473,-150.0,0.00025063,4]
[374505848,1753329053483,-151.0,0.00025068,7]
[374505850,1753329053492,-201.840783,0.00025068,7]
[374505852,1753329053502,-151.0,0.00025068,7]
[374505854,1753329053513,-201.840783,0.00025068,7]
[374505856,1753329053523,-251.400599,0.00025068,7]
[374505858,1753329053533,-234.563674,0.00025068,7]
[374505860,1753329053543,-234.563674,0.00025068,7]
[374505862,1753329053552,-151.0,0.00025068,7]
[374505864,1753329053562,-151.0,0.00025068,7]
[374505865,1753329053572,-1500.0,0.00025068,2]
[374505867,1753329053583,-1500.0,0.00025068,2]
[374505868,1753329053592,-1500.0,0.00025068,2]
[374505870,1753329053602,-1500.0,0.00025068,2]
[374505872,1753329053612,-230.0,0.00025077,2]
[374505873,1753329053622,-151.0,0.00025078,7]
[374505875,1753329053632,-234.482178,0.00025078,7]
[374505876,1753329053642,-234.482178,0.00025078,7]
[374505878,1753329053651,-151.0,0.00025078,7]
[374505879,1753329053661,-216.596582,0.00025078,7]
[374505881,1753329053671,-276.19465298,0.00025078,4]
[374505882,1753329053682,-150.0,0.00025084,4]
[374505884,1753329053692,-230.0,0.00025084,2]
[374505886,1753329053702,-150.0,0.00025091,4]
[374505887,1753329053711,-150.0,0.00025092,4]
[374505889,1753329053722,-150.0,0.00025093,2]
[374505890,1753329053731,-153.762703,0.00025096,7]
[374505892,1753329053741,-153.762703,0.00025096,7]
[374505894,1753329053751,-233.797699,0.00025096,7]
[374505895,1753329053760,-233.797699,0.00025096,7]
[374505897,1753329053770,-151.0,0.00025096,7]
[374505899,1753329053781,-513.526302,0.00025096,7]
[374505900,1753329053791,-513.526302,0.00025096,7]
[374505902,1753329053800,-151.0,0.00025097,7]
[374505904,1753329053810,-151.0,0.00025097,7]
[374505905,1753329053820,-180.808131,0.00025097,7]
[374505907,1753329053831,-180.808131,0.00025097,7]
[374505909,1753329053841,-151.0,0.00025097,7]
[374505910,1753329053851,-317.742185,0.00025097,7]
[374505911,1753329053862,-317.742185,0.00025097,7]
[374505912,1753329053872,-151.0,0.00025097,7]
[374505913,1753329053883,-150.0,0.00025097,4]
[374505914,1753329053892,-150.0,0.00025099,2]
[374505915,1753329053902,-200.0,0.000251,7]
[374505916,1753329053912,-151.0,0.00025105,7]
[374505917,1753329053923,-226.819734,0.00025105,7]